[Event "Late-Titled-Tuesday-Blitz-January-23-2024"]
[Site "Chess.com"]
[Date "2024.01.23"]
[Round "7"]
[White "Jenia84"]
[Black "ATM622"]
[Result "0-1"]
[WhiteElo "2308"]
[BlackElo "2468"]
[TimeControl "180+1"]
[EndTime "15:14:03 PST"]
[Termination "ATM622 won by resignation"]

1. Nf3 {[%clk 0:03:00.9]} 1... b6 {[%clk 0:02:58.5]} 2. g3 {[%clk 0:02:59]} 2...
Bb7 {[%clk 0:02:58.8]} 3. Bg2 {[%clk 0:02:59.4]} 3... g6 {[%clk 0:02:59.2]} 4.
O-O {[%clk 0:02:51]} 4... Bg7 {[%clk 0:02:59.7]} 5. d4 {[%clk 0:02:50.7]} 5...
Nf6 {[%clk 0:02:59.8]} 6. c4 {[%clk 0:02:51.3]} 6... e6 {[%clk 0:02:59.4]} 7.
Nc3 {[%clk 0:02:51.1]} 7... O-O {[%clk 0:02:59.1]} 8. Bg5 {[%clk 0:02:47.7]}
8... d5 {[%clk 0:02:55.4]} 9. cxd5 {[%clk 0:02:45.8]} 9... exd5 {[%clk
0:02:54.2]} 10. Ne5 {[%clk 0:02:42.8]} 10... c6 {[%clk 0:02:51]} 11. Rc1 {[%clk
0:02:38.1]} 11... Nbd7 {[%clk 0:02:49.7]} 12. Nxd7 {[%clk 0:02:34.4]} 12... Qxd7
{[%clk 0:02:49]} 13. e4 {[%clk 0:02:04.8]} 13... dxe4 {[%clk 0:02:37.1]} 14.
Nxe4 {[%clk 0:02:03.6]} 14... Nxe4 {[%clk 0:02:35.1]} 15. Bxe4 {[%clk
0:02:03.1]} 15... Qxd4 {[%clk 0:02:32]} 16. Qxd4 {[%clk 0:02:01.8]} 16... Bxd4
{[%clk 0:02:32.9]} 17. Bxc6 {[%clk 0:02:01.6]} 17... Bxc6 {[%clk 0:02:33.5]} 18.
Rxc6 {[%clk 0:02:00.9]} 18... Bxb2 {[%clk 0:02:34.1]} 19. Rd1 {[%clk 0:01:59.6]}
19... Rac8 {[%clk 0:02:26.1]} 20. Rxc8 {[%clk 0:01:52.1]} 20... Rxc8 {[%clk
0:02:27]} 21. Rd7 {[%clk 0:01:51.6]} 21... a5 {[%clk 0:02:24]} 22. a4 {[%clk
0:01:47.3]} 22... Ba3 {[%clk 0:02:18.8]} 23. Kg2 {[%clk 0:01:39.3]} 23... Bc5
{[%clk 0:02:12.5]} 24. Bf6 {[%clk 0:01:38.8]} 24... Re8 {[%clk 0:02:00.7]} 25.
h4 {[%clk 0:01:38.2]} 25... Re6 {[%clk 0:01:48.5]} 26. Rd8+ {[%clk 0:01:33.8]}
26... Bf8 {[%clk 0:01:48.1]} 27. Bg5 {[%clk 0:01:33.5]} 27... Kg7 {[%clk
0:01:43.4]} 28. g4 {[%clk 0:01:25.2]} 28... Re4 {[%clk 0:01:30.2]} 29. f3 {[%clk
0:01:08.6]} 29... Rxa4 {[%clk 0:01:27.5]} 30. h5 {[%clk 0:01:06.8]} 30... gxh5
{[%clk 0:01:21.8]} 31. gxh5 {[%clk 0:01:06.4]} 31... h6 {[%clk 0:01:21.5]} 32.
Be3 {[%clk 0:01:03.8]} 32... Bc5 {[%clk 0:01:17.7]} 33. Bd2 {[%clk 0:00:58.2]}
33... Kf6 {[%clk 0:01:05.4]} 34. Bxh6 {[%clk 0:00:56.4]} 34... Rh4 {[%clk
0:01:04.5]} 35. Bd2 {[%clk 0:00:45.9]} 35... Rxh5 {[%clk 0:01:02.6]} 36. Bc3+
{[%clk 0:00:46.1]} 36... Ke7 {[%clk 0:00:58.6]} 37. Rb8 {[%clk 0:00:44.6]} 37...
Rd5 {[%clk 0:00:55.3]} 38. f4 {[%clk 0:00:44.3]} 38... a4 {[%clk 0:00:52.4]} 39.
Rb7+ {[%clk 0:00:40.9]} 39... Ke6 {[%clk 0:00:51.7]} 40. Be5 {[%clk 0:00:38.6]}
40... f6 {[%clk 0:00:50.2]} 41. Ba1 {[%clk 0:00:37.4]} 41... a3 {[%clk
0:00:46.3]} 42. Kf3 {[%clk 0:00:37.5]} 42... Rd1 {[%clk 0:00:44.9]} 0-1

[Event "Late-Titled-Tuesday-Blitz-January-23-2024"]
[Site "Chess.com"]
[Date "2024.01.23"]
[Round "7"]
[White "SergioMoralesG"]
[Black "DraningWaterHi"]
[Result "0-1"]
[WhiteElo "2449"]
[BlackElo "2215"]
[TimeControl "180+1"]
[EndTime "15:14:04 PST"]
[Termination "DraningWaterHi won by checkmate"]

1. d4 {[%clk 0:03:00.9]} 1... Nf6 {[%clk 0:02:56.1]} 2. c4 {[%clk 0:02:59.7]}
2... g6 {[%clk 0:02:52.1]} 3. Nc3 {[%clk 0:02:59.4]} 3... Bg7 {[%clk 0:02:52.7]}
4. e4 {[%clk 0:02:59.8]} 4... d6 {[%clk 0:02:53.1]} 5. Nf3 {[%clk 0:03:00.3]}
5... O-O {[%clk 0:02:52.9]} 6. Be2 {[%clk 0:03:01]} 6... e5 {[%clk 0:02:53.5]}
7. Be3 {[%clk 0:03:00.7]} 7... Ng4 {[%clk 0:02:46.4]} 8. Bg5 {[%clk 0:03:00.2]}
8... f6 {[%clk 0:02:45.6]} 9. Bh4 {[%clk 0:03:00.4]} 9... g5 {[%clk 0:02:44.9]}
10. Bg3 {[%clk 0:03:00.1]} 10... Nc6 {[%clk 0:02:44.8]} 11. d5 {[%clk
0:02:59.7]} 11... Ne7 {[%clk 0:02:45.1]} 12. Nd2 {[%clk 0:02:59.8]} 12... Nh6
{[%clk 0:02:44.7]} 13. f3 {[%clk 0:03:00.2]} 13... f5 {[%clk 0:02:38]} 14. b4
{[%clk 0:02:57.1]} 14... f4 {[%clk 0:02:37.5]} 15. Bf2 {[%clk 0:02:57.2]} 15...
a5 {[%clk 0:02:36.8]} 16. a3 {[%clk 0:02:57]} 16... Ng6 {[%clk 0:02:36]} 17. c5
{[%clk 0:02:53.8]} 17... Bd7 {[%clk 0:02:34.9]} 18. cxd6 {[%clk 0:02:50.4]}
18... cxd6 {[%clk 0:02:35.8]} 19. Nb5 {[%clk 0:02:48.9]} 19... Bxb5 {[%clk
0:02:34.8]} 20. Bxb5 {[%clk 0:02:49.8]} 20... axb4 {[%clk 0:02:31.6]} 21. axb4
{[%clk 0:02:49.4]} 21... Rxa1 {[%clk 0:02:32.4]} 22. Qxa1 {[%clk 0:02:49.8]}
22... g4 {[%clk 0:02:33.3]} 23. Qa7 {[%clk 0:02:41.9]} 23... Qc7 {[%clk
0:02:32.8]} 24. O-O {[%clk 0:02:34.8]} 24... Bf6 {[%clk 0:02:32.3]} 25. Qb6
{[%clk 0:02:28.3]} 25... Qc3 {[%clk 0:02:27.8]} 26. Be1 {[%clk 0:02:12.9]} 26...
Qxb4 {[%clk 0:02:20]} 27. Nc4 {[%clk 0:02:05.6]} 27... Qb3 {[%clk 0:02:14.7]}
28. Nxd6 {[%clk 0:02:02.3]} 28... Bd8 {[%clk 0:02:14.5]} 29. Qxb7 {[%clk
0:01:56.6]} 29... Be7 {[%clk 0:02:13.4]} 30. Bc4 {[%clk 0:01:42.2]} 30... Qc2
{[%clk 0:02:03.6]} 31. Nf5 {[%clk 0:01:06.6]} 31... Nxf5 {[%clk 0:01:56.7]} 32.
exf5 {[%clk 0:01:03.5]} 32... Bc5+ {[%clk 0:01:55.2]} 33. Bf2 {[%clk 0:01:01.4]}
33... Qxc4 {[%clk 0:01:42.3]} 34. fxg6 {[%clk 0:00:56.8]} 34... hxg6 {[%clk
0:01:42.4]} 35. Qd7 {[%clk 0:00:31.9]} 35... g3 {[%clk 0:01:38.6]} 36. Bxc5
{[%clk 0:00:23.4]} 36... Qxc5+ {[%clk 0:01:38]} 37. Kh1 {[%clk 0:00:24.1]} 37...
gxh2 {[%clk 0:01:36.9]} 38. Rb1 {[%clk 0:00:20.2]} 38... Rf7 {[%clk 0:01:03.8]}
39. Qe6 {[%clk 0:00:17.3]} 39... Kg7 {[%clk 0:01:03.2]} 40. Qxe5+ {[%clk
0:00:15.2]} 40... Kh6 {[%clk 0:00:59.3]} 41. Rb8 {[%clk 0:00:13]} 41... Qg1#
{[%clk 0:00:58.6]} 0-1

[Event "Late-Titled-Tuesday-Blitz-January-23-2024"]
[Site "Chess.com"]
[Date "2024.01.23"]
[Round "7"]
[White "ITheOnlyME"]
[Black "C_K_G"]
[Result "1-0"]
[WhiteElo "2385"]
[BlackElo "2145"]
[TimeControl "180+1"]
[EndTime "15:14:09 PST"]
[Termination "ITheOnlyME won by resignation"]

1. d4 {[%clk 0:03:00.9]} 1... d5 {[%clk 0:02:59.5]} 2. Bf4 {[%clk 0:03:01.3]}
2... e6 {[%clk 0:02:59.7]} 3. e3 {[%clk 0:03:01.2]} 3... Nf6 {[%clk 0:03:00.3]}
4. Nf3 {[%clk 0:03:00.9]} 4... Bd6 {[%clk 0:03:00.8]} 5. Bg3 {[%clk 0:03:01.2]}
5... O-O {[%clk 0:03:00.9]} 6. Bd3 {[%clk 0:03:01.7]} 6... c5 {[%clk 0:03:00.7]}
7. c3 {[%clk 0:03:01.8]} 7... Nc6 {[%clk 0:03:01]} 8. Nbd2 {[%clk 0:03:01.7]}
8... c4 {[%clk 0:03:00.4]} 9. Bc2 {[%clk 0:03:01.7]} 9... Qc7 {[%clk 0:02:59.5]}
10. e4 {[%clk 0:02:57.5]} 10... Bxg3 {[%clk 0:02:51]} 11. hxg3 {[%clk
0:02:58.4]} 11... h6 {[%clk 0:02:49.6]} 12. e5 {[%clk 0:02:58]} 12... Nd7 {[%clk
0:02:29.1]} 13. g4 {[%clk 0:02:57.9]} 13... f6 {[%clk 0:02:26.4]} 14. exf6
{[%clk 0:02:55.9]} 14... Nxf6 {[%clk 0:02:22.1]} 15. Qe2 {[%clk 0:02:46.2]}
15... Nxg4 {[%clk 0:02:14.3]} 16. O-O-O {[%clk 0:02:45.3]} 16... e5 {[%clk
0:02:11.2]} 17. dxe5 {[%clk 0:02:39.6]} 17... Ngxe5 {[%clk 0:02:12.1]} 18. Rh5
{[%clk 0:02:24.4]} 18... Bg4 {[%clk 0:01:48.9]} 19. Rxe5 {[%clk 0:02:23]} 19...
Bxf3 {[%clk 0:01:48.6]} 20. Nxf3 {[%clk 0:02:22.9]} 20... Rxf3 {[%clk
0:01:43.3]} 21. Rexd5 {[%clk 0:02:05.6]} 21... Qf4+ {[%clk 0:01:40.7]} 22. Kb1
{[%clk 0:02:03.8]} 22... Rxf2 {[%clk 0:01:40.1]} 23. Qe6+ {[%clk 0:01:59.7]}
23... Kh8 {[%clk 0:01:37]} 24. Qg6 {[%clk 0:01:46.4]} 24... Rxc2 {[%clk
0:01:27.4]} 25. Qxc2 {[%clk 0:01:47.3]} 25... Re8 {[%clk 0:01:13.8]} 26. Rf5
{[%clk 0:01:44.8]} 26... Qg4 {[%clk 0:01:12.4]} 27. Rdf1 {[%clk 0:01:38.5]}
27... Kg8 {[%clk 0:00:49.8]} 28. Qf2 {[%clk 0:01:23.1]} 28... Qe4+ {[%clk
0:00:33.2]} 29. Ka1 {[%clk 0:01:22.3]} 29... Qe7 {[%clk 0:00:11]} 30. Rf7 {[%clk
0:01:18.8]} 30... Qd6 {[%clk 0:00:10.9]} 31. Qf4 {[%clk 0:01:01]} 31... Qxf4
{[%clk 0:00:08.6]} 32. R7xf4 {[%clk 0:01:00.6]} 32... Ne5 {[%clk 0:00:08.6]} 33.
Re4 {[%clk 0:00:57.5]} 33... Re7 {[%clk 0:00:06.8]} 34. Rfe1 {[%clk 0:00:57.8]}
34... Nc6 {[%clk 0:00:07.1]} 35. Rxe7 {[%clk 0:00:58]} 1-0

[Event "Late-Titled-Tuesday-Blitz-January-23-2024"]
[Site "Chess.com"]
[Date "2024.01.23"]
[Round "7"]
[White "ccccvhhhj"]
[Black "PawnEatingZombie"]
[Result "1-0"]
[WhiteElo "2473"]
[BlackElo "2105"]
[TimeControl "180+1"]
[EndTime "15:14:11 PST"]
[Termination "ccccvhhhj won by resignation"]

1. e4 {[%clk 0:03:00.9]} 1... e6 {[%clk 0:02:56.8]} 2. Nf3 {[%clk 0:03:01.3]}
2... d5 {[%clk 0:02:55.7]} 3. e5 {[%clk 0:03:01.9]} 3... Bd7 {[%clk 0:02:54.8]}
4. b4 {[%clk 0:03:01.8]} 4... Bxb4 {[%clk 0:02:50.6]} 5. c3 {[%clk 0:03:02.5]}
5... Bf8 {[%clk 0:02:43.1]} 6. d4 {[%clk 0:03:03.4]} 6... c5 {[%clk 0:02:42.7]}
7. Bd3 {[%clk 0:03:04.3]} 7... Nc6 {[%clk 0:02:42.6]} 8. O-O {[%clk 0:03:04.3]}
8... Nge7 {[%clk 0:02:39.3]} 9. a4 {[%clk 0:02:59.5]} 9... Ng6 {[%clk
0:02:37.9]} 10. Na3 {[%clk 0:02:59.2]} 10... Be7 {[%clk 0:02:35.6]} 11. Nb5
{[%clk 0:02:59.6]} 11... O-O {[%clk 0:02:34.5]} 12. Nd6 {[%clk 0:03:00.5]} 12...
Bxd6 {[%clk 0:02:34.1]} 13. exd6 {[%clk 0:03:01.4]} 13... cxd4 {[%clk
0:02:22.9]} 14. cxd4 {[%clk 0:03:02.3]} 14... a5 {[%clk 0:02:10.9]} 15. h4
{[%clk 0:02:56.2]} 15... Nxh4 {[%clk 0:01:55.1]} 16. Bxh7+ {[%clk 0:02:48.8]}
16... Kxh7 {[%clk 0:01:30.9]} 17. Ng5+ {[%clk 0:02:48.8]} 17... Kg6 {[%clk
0:01:31.4]} 18. Qg4 {[%clk 0:02:46.6]} 18... f5 {[%clk 0:01:25.4]} 19. Qxh4
{[%clk 0:02:46.1]} 19... Rh8 {[%clk 0:01:25.8]} 20. Qg3 {[%clk 0:02:44.4]} 20...
Kf6 {[%clk 0:01:14.9]} 21. Bf4 {[%clk 0:02:10.7]} 21... g6 {[%clk 0:00:50.1]}
22. Nxe6 {[%clk 0:01:13.6]} 22... Bxe6 {[%clk 0:00:47.2]} 23. Bg5+ {[%clk
0:01:13.7]} 23... Kf7 {[%clk 0:00:46.2]} 24. Bxd8 {[%clk 0:01:14.6]} 24... Raxd8
{[%clk 0:00:44.4]} 25. Rab1 {[%clk 0:01:09.2]} 25... Rd7 {[%clk 0:00:41.3]} 26.
Rfd1 {[%clk 0:01:06]} 26... Kf6 {[%clk 0:00:34.8]} 27. f4 {[%clk 0:01:03.8]}
27... Rh5 {[%clk 0:00:32.3]} 28. Re1 {[%clk 0:00:57.9]} 28... Kf7 {[%clk
0:00:22.8]} 29. Qe3 {[%clk 0:00:56.7]} 29... Nd8 {[%clk 0:00:14.9]} 30. Rbc1
{[%clk 0:00:51.5]} 30... Rxd6 {[%clk 0:00:12.9]} 31. Rc7+ {[%clk 0:00:52.2]}
31... Kf8 {[%clk 0:00:10.1]} 32. Qe5 {[%clk 0:00:52.4]} 32... Rd7 {[%clk
0:00:07.9]} 33. Qf6+ {[%clk 0:00:52]} 33... Nf7 {[%clk 0:00:07.1]} 34. Rxd7
{[%clk 0:00:49.7]} 34... Bxd7 {[%clk 0:00:07]} 35. Qe7+ {[%clk 0:00:50]} 35...
Kg8 {[%clk 0:00:07]} 36. Qxd7 {[%clk 0:00:50.6]} 1-0

[Event "Late-Titled-Tuesday-Blitz-January-23-2024"]
[Site "Chess.com"]
[Date "2024.01.23"]
[Round "7"]
[White "toninhojit"]
[Black "IlanSchnaider"]
[Result "1-0"]
[WhiteElo "2517"]
[BlackElo "2750"]
[TimeControl "180+1"]
[EndTime "15:14:14 PST"]
[Termination "toninhojit won by resignation"]

1. d4 {[%clk 0:03:00.9]} 1... d5 {[%clk 0:03:00.1]} 2. c4 {[%clk 0:02:59.1]}
2... c6 {[%clk 0:03:00.3]} 3. Nf3 {[%clk 0:02:59.3]} 3... Nf6 {[%clk 0:03:00.2]}
4. e3 {[%clk 0:02:59.1]} 4... Bf5 {[%clk 0:02:59.4]} 5. Nc3 {[%clk 0:02:59.2]}
5... e6 {[%clk 0:02:54.5]} 6. Nh4 {[%clk 0:02:58.4]} 6... Be4 {[%clk 0:02:55]}
7. f3 {[%clk 0:02:53.7]} 7... Bg6 {[%clk 0:02:55.5]} 8. Qb3 {[%clk 0:02:52.5]}
8... Qc7 {[%clk 0:02:52.8]} 9. Bd2 {[%clk 0:02:50.2]} 9... a5 {[%clk 0:02:50]}
10. Rc1 {[%clk 0:02:33.9]} 10... Bd6 {[%clk 0:02:49.9]} 11. cxd5 {[%clk
0:02:28.7]} 11... exd5 {[%clk 0:02:50]} 12. Nb5 {[%clk 0:02:24.1]} 12... Bg3+
{[%clk 0:01:38]} 13. hxg3 {[%clk 0:02:21]} 13... Qxg3+ {[%clk 0:01:38.5]} 14.
Kd1 {[%clk 0:02:18.8]} 14... a4 {[%clk 0:01:28.5]} 15. Nd6+ {[%clk 0:01:54.6]}
15... Qxd6 {[%clk 0:01:17.3]} 16. Qxb7 {[%clk 0:01:55]} 16... O-O {[%clk
0:01:08.2]} 17. Qxa8 {[%clk 0:01:45.4]} 17... Nh5 {[%clk 0:01:05.5]} 18. Be1
{[%clk 0:01:28.2]} 18... Qe7 {[%clk 0:00:57.3]} 19. Bf2 {[%clk 0:01:21.2]} 19...
Qb4 {[%clk 0:00:57.4]} 20. Nxg6 {[%clk 0:01:05.7]} 20... hxg6 {[%clk 0:00:56]}
21. Bd3 {[%clk 0:00:50.8]} 21... Qxb2 {[%clk 0:00:43.5]} 22. Bc2 {[%clk
0:00:50.8]} 22... Nd7 {[%clk 0:00:38.5]} 23. Qxc6 {[%clk 0:00:44.3]} 23... Ndf6
{[%clk 0:00:30.9]} 24. Qxa4 {[%clk 0:00:44.8]} 24... Rc8 {[%clk 0:00:25.3]} 25.
Qb3 {[%clk 0:00:41.3]} 25... Rxc2 {[%clk 0:00:12.4]} 26. Rxc2 {[%clk 0:00:32.6]}
26... Qa1+ {[%clk 0:00:12.7]} 27. Rc1 {[%clk 0:00:30.2]} 27... Qxd4+ {[%clk
0:00:08.2]} 28. exd4 {[%clk 0:00:29.8]} 28... Ng3 {[%clk 0:00:08.9]} 29. Bxg3
{[%clk 0:00:29.6]} 29... Ne4 {[%clk 0:00:09.8]} 1-0

[Event "Late-Titled-Tuesday-Blitz-January-23-2024"]
[Site "Chess.com"]
[Date "2024.01.23"]
[Round "7"]
[White "StellarChess"]
[Black "Alex_Banzea"]
[Result "1-0"]
[WhiteElo "2497"]
[BlackElo "2610"]
[TimeControl "180+1"]
[EndTime "15:14:15 PST"]
[Termination "StellarChess won on time"]

1. d4 {[%clk 0:03:00.9]} 1... Nf6 {[%clk 0:02:31.6]} 2. Bg5 {[%clk 0:03:00.2]}
2... g6 {[%clk 0:02:31.7]} 3. Bxf6 {[%clk 0:03:00.7]} 3... exf6 {[%clk
0:02:32.6]} 4. e3 {[%clk 0:03:01.4]} 4... d5 {[%clk 0:02:29.3]} 5. c4 {[%clk
0:03:00.2]} 5... dxc4 {[%clk 0:02:22.8]} 6. Bxc4 {[%clk 0:03:01.1]} 6... Bd6
{[%clk 0:02:22.2]} 7. h4 {[%clk 0:03:00.6]} 7... h5 {[%clk 0:02:20.8]} 8. Qc2
{[%clk 0:02:58]} 8... Nd7 {[%clk 0:01:58.8]} 9. Ne2 {[%clk 0:02:56.1]} 9... Qe7
{[%clk 0:01:30.1]} 10. Nbc3 {[%clk 0:02:47.6]} 10... c6 {[%clk 0:01:30.5]} 11.
O-O-O {[%clk 0:02:42.6]} 11... Nb6 {[%clk 0:01:24.4]} 12. Bb3 {[%clk 0:02:39.2]}
12... Be6 {[%clk 0:01:16.3]} 13. Bxe6 {[%clk 0:02:27.2]} 13... Qxe6 {[%clk
0:01:16.3]} 14. Qe4 {[%clk 0:02:27.3]} 14... f5 {[%clk 0:01:05.6]} 15. Qxe6+
{[%clk 0:02:27.5]} 15... fxe6 {[%clk 0:01:06.5]} 16. g3 {[%clk 0:02:25.2]} 16...
e5 {[%clk 0:01:00]} 17. dxe5 {[%clk 0:02:24.9]} 17... Bxe5 {[%clk 0:01:00.7]}
18. Rd3 {[%clk 0:02:20.3]} 18... Ke7 {[%clk 0:00:57.5]} 19. Rhd1 {[%clk
0:02:19.3]} 19... Rad8 {[%clk 0:00:57.9]} 20. Nf4 {[%clk 0:02:11.1]} 20... Bxf4
{[%clk 0:00:58.2]} 21. exf4 {[%clk 0:02:11.8]} 21... Rxd3 {[%clk 0:00:58]} 22.
Rxd3 {[%clk 0:02:12.7]} 22... Rd8 {[%clk 0:00:58.2]} 23. Re3+ {[%clk 0:02:07.7]}
23... Kf6 {[%clk 0:00:58.8]} 24. b3 {[%clk 0:02:05.3]} 24... Rd7 {[%clk
0:00:52.9]} 25. Kc2 {[%clk 0:02:05.3]} 25... Nd5 {[%clk 0:00:51.6]} 26. Nxd5+
{[%clk 0:02:05.6]} 26... Rxd5 {[%clk 0:00:52.5]} 27. Re8 {[%clk 0:02:01.2]}
27... Rd7 {[%clk 0:00:47.7]} 28. Ra8 {[%clk 0:01:51.4]} 28... b6 {[%clk
0:00:45.9]} 29. a4 {[%clk 0:01:52]} 29... c5 {[%clk 0:00:46.8]} 30. a5 {[%clk
0:01:50.4]} 30... bxa5 {[%clk 0:00:40.3]} 31. Rc8 {[%clk 0:01:50.2]} 31... Rd4
{[%clk 0:00:23.9]} 32. Rc6+ {[%clk 0:01:39.5]} 32... Kg7 {[%clk 0:00:15.7]} 33.
Rc7+ {[%clk 0:01:24.9]} 33... Kh6 {[%clk 0:00:16.2]} 34. Rxa7 {[%clk 0:01:25.6]}
34... c4 {[%clk 0:00:16.8]} 35. bxc4 {[%clk 0:01:23.4]} 35... Rxc4+ {[%clk
0:00:17.7]} 36. Kd3 {[%clk 0:01:24.3]} 36... Ra4 {[%clk 0:00:17.6]} 37. Ra8
{[%clk 0:01:16.4]} 37... Ra3+ {[%clk 0:00:13.7]} 38. Kd4 {[%clk 0:01:15.6]}
38... Ra2 {[%clk 0:00:10.4]} 39. Ke5 {[%clk 0:01:15.4]} 39... Kg7 {[%clk
0:00:03.9]} 40. Ra7+ {[%clk 0:01:15.5]} 40... Kg8 {[%clk 0:00:03.2]} 41. Kf6
{[%clk 0:01:16.4]} 41... a4 {[%clk 0:00:02.1]} 42. Kxg6 {[%clk 0:01:08.6]} 42...
Kf8 {[%clk 0:00:02.6]} 43. Kxh5 {[%clk 0:01:06.9]} 43... a3 {[%clk 0:00:01.5]}
44. Kg5 {[%clk 0:01:07.8]} 44... Ra1 {[%clk 0:00:01.3]} 45. Kxf5 {[%clk
0:01:06.3]} 1-0

[Event "Late-Titled-Tuesday-Blitz-January-23-2024"]
[Site "Chess.com"]
[Date "2024.01.23"]
[Round "7"]
[White "FM_Kappeler"]
[Black "ImportedItalianMaple"]
[Result "0-1"]
[WhiteElo "2267"]
[BlackElo "2435"]
[TimeControl "180+1"]
[EndTime "15:14:18 PST"]
[Termination "ImportedItalianMaple won on time"]

1. c4 {[%clk 0:03:00.9]} 1... Nf6 {[%clk 0:02:55.4]} 2. Nf3 {[%clk 0:03:00.3]}
2... b6 {[%clk 0:02:54.7]} 3. Nc3 {[%clk 0:02:59.5]} 3... Bb7 {[%clk 0:02:54.6]}
4. g3 {[%clk 0:02:58.4]} 4... e6 {[%clk 0:02:50.4]} 5. Bg2 {[%clk 0:02:58.3]}
5... c5 {[%clk 0:02:45.7]} 6. O-O {[%clk 0:02:57.9]} 6... Be7 {[%clk 0:02:41.4]}
7. d4 {[%clk 0:02:56.3]} 7... cxd4 {[%clk 0:02:36.5]} 8. Qxd4 {[%clk 0:02:56.1]}
8... Nc6 {[%clk 0:02:34.3]} 9. Qf4 {[%clk 0:02:51.9]} 9... O-O {[%clk
0:02:27.5]} 10. b3 {[%clk 0:02:49.2]} 10... Qb8 {[%clk 0:02:20.5]} 11. Qd2
{[%clk 0:02:46.4]} 11... Rd8 {[%clk 0:02:18.4]} 12. e4 {[%clk 0:02:33.2]} 12...
Bb4 {[%clk 0:02:12.6]} 13. Re1 {[%clk 0:02:01]} 13... d5 {[%clk 0:02:08.9]} 14.
exd5 {[%clk 0:01:46.4]} 14... exd5 {[%clk 0:02:09.1]} 15. a3 {[%clk 0:01:07.7]}
15... Ne4 {[%clk 0:02:03.8]} 16. Qc2 {[%clk 0:00:49]} 16... Bxc3 {[%clk
0:02:01.2]} 17. cxd5 {[%clk 0:00:46.5]} 17... Ne5 {[%clk 0:01:02.6]} 18. Nxe5
{[%clk 0:00:28.8]} 18... Bxe5 {[%clk 0:00:55.6]} 19. Bb2 {[%clk 0:00:13.5]}
19... Bxb2 {[%clk 0:00:52]} 20. Qxb2 {[%clk 0:00:13.3]} 20... Nf6 {[%clk
0:00:52.7]} 21. d6 {[%clk 0:00:07.2]} 21... Bxg2 {[%clk 0:00:51.8]} 22. Kxg2
{[%clk 0:00:07.1]} 22... Qxd6 {[%clk 0:00:52.5]} 23. Rad1 {[%clk 0:00:06.3]}
23... Qc6+ {[%clk 0:00:52.7]} 24. Kg1 {[%clk 0:00:06.1]} 24... h6 {[%clk
0:00:49.1]} 25. Qe5 {[%clk 0:00:04.1]} 25... Qf3 {[%clk 0:00:43.5]} 26. Rxd8+
{[%clk 0:00:03.1]} 26... Rxd8 {[%clk 0:00:44.4]} 27. Qe7 {[%clk 0:00:03.5]}
27... Rd1 {[%clk 0:00:43.8]} 28. Rxd1 {[%clk 0:00:02.5]} 28... Qxd1+ {[%clk
0:00:44.7]} 29. Kg2 {[%clk 0:00:02.8]} 29... Qxb3 {[%clk 0:00:43.4]} 30. Qd8+
{[%clk 0:00:01.6]} 30... Kh7 {[%clk 0:00:43.3]} 31. Qe7 {[%clk 0:00:01.6]} 31...
Qd5+ {[%clk 0:00:42.1]} 0-1

[Event "Late-Titled-Tuesday-Blitz-January-23-2024"]
[Site "Chess.com"]
[Date "2024.01.23"]
[Round "7"]
[White "R2D2PTY"]
[Black "Vicmary2005"]
[Result "0-1"]
[WhiteElo "2229"]
[BlackElo "2003"]
[TimeControl "180+1"]
[EndTime "15:14:19 PST"]
[Termination "Vicmary2005 won by resignation"]

1. e4 {[%clk 0:02:57.4]} 1... c5 {[%clk 0:02:59.2]} 2. Nc3 {[%clk 0:02:56.4]}
2... Nc6 {[%clk 0:02:58.6]} 3. Bb5 {[%clk 0:02:56.2]} 3... Nd4 {[%clk
0:02:57.8]} 4. Nf3 {[%clk 0:02:56.6]} 4... g6 {[%clk 0:02:57.7]} 5. O-O {[%clk
0:02:53.6]} 5... Bg7 {[%clk 0:02:56.9]} 6. Nxd4 {[%clk 0:02:42.6]} 6... cxd4
{[%clk 0:02:55.9]} 7. Ne2 {[%clk 0:02:42.8]} 7... a6 {[%clk 0:02:55.8]} 8. Bd3
{[%clk 0:02:43]} 8... e6 {[%clk 0:02:55.5]} 9. c3 {[%clk 0:02:43.4]} 9... dxc3
{[%clk 0:02:55]} 10. bxc3 {[%clk 0:02:39.3]} 10... Ne7 {[%clk 0:02:54.5]} 11.
Bc2 {[%clk 0:02:36.2]} 11... O-O {[%clk 0:02:48.4]} 12. d4 {[%clk 0:02:36.7]}
12... d5 {[%clk 0:02:47.2]} 13. e5 {[%clk 0:02:37.1]} 13... f6 {[%clk
0:02:45.6]} 14. f4 {[%clk 0:02:37.1]} 14... fxe5 {[%clk 0:02:44.4]} 15. fxe5
{[%clk 0:02:38]} 15... b5 {[%clk 0:02:37.5]} 16. Ba3 {[%clk 0:02:37]} 16... Bd7
{[%clk 0:02:33.3]} 17. Nf4 {[%clk 0:02:33]} 17... Rc8 {[%clk 0:02:24.8]} 18. Qe1
{[%clk 0:01:50]} 18... Rf7 {[%clk 0:02:16]} 19. Bd1 {[%clk 0:01:27]} 19... Nf5
{[%clk 0:02:09.8]} 20. Bf3 {[%clk 0:01:17.2]} 20... Qc7 {[%clk 0:01:40]} 21.
Nxd5 {[%clk 0:01:07.7]} 21... exd5 {[%clk 0:01:36.9]} 22. e6 {[%clk 0:01:03.5]}
22... Bxe6 {[%clk 0:01:26]} 23. Qxe6 {[%clk 0:01:04.4]} 23... Qxc3 {[%clk
0:01:24.7]} 24. Bxd5 {[%clk 0:00:59.8]} 24... Bxd4+ {[%clk 0:01:07.7]} 25. Kh1
{[%clk 0:00:59.5]} 25... Rc7 {[%clk 0:00:47.1]} 26. Rac1 {[%clk 0:00:50.1]}
26... Qd2 {[%clk 0:00:13.4]} 27. Rxc7 {[%clk 0:00:42.9]} 27... Kh8 {[%clk
0:00:08.4]} 28. Qxf7 {[%clk 0:00:40.6]} 28... Ng3+ {[%clk 0:00:08]} 0-1

[Event "Late-Titled-Tuesday-Blitz-January-23-2024"]
[Site "Chess.com"]
[Date "2024.01.23"]
[Round "7"]
[White "Hikaru"]
[Black "bazar-wokzal"]
[Result "1-0"]
[WhiteElo "3279"]
[BlackElo "2604"]
[TimeControl "180+1"]
[EndTime "15:14:20 PST"]
[Termination "Hikaru won on time"]

1. d4 {[%clk 0:03:00.9]} 1... Nf6 {[%clk 0:02:59.6]} 2. Bg5 {[%clk 0:03:00.2]}
2... e6 {[%clk 0:02:59.7]} 3. e4 {[%clk 0:02:59.7]} 3... h6 {[%clk 0:03:00.2]}
4. Bxf6 {[%clk 0:03:00.1]} 4... Qxf6 {[%clk 0:03:00.8]} 5. Nc3 {[%clk 0:03:01]}
5... Bb4 {[%clk 0:02:59.8]} 6. Qd3 {[%clk 0:03:00.3]} 6... d5 {[%clk 0:02:53.9]}
7. e5 {[%clk 0:02:59.6]} 7... Qe7 {[%clk 0:02:50.6]} 8. a3 {[%clk 0:02:59.8]}
8... Bxc3+ {[%clk 0:02:49.4]} 9. Qxc3 {[%clk 0:03:00.6]} 9... c5 {[%clk
0:02:45.9]} 10. dxc5 {[%clk 0:02:58.3]} 10... O-O {[%clk 0:02:37.1]} 11. Nf3
{[%clk 0:02:55.9]} 11... b6 {[%clk 0:02:20.7]} 12. cxb6 {[%clk 0:02:55.7]} 12...
axb6 {[%clk 0:02:15.1]} 13. Bd3 {[%clk 0:02:56]} 13... Na6 {[%clk 0:02:07.5]}
14. b4 {[%clk 0:02:54.8]} 14... Nc7 {[%clk 0:02:00.4]} 15. O-O {[%clk
0:02:52.8]} 15... Ba6 {[%clk 0:01:59.5]} 16. Nd4 {[%clk 0:02:52.7]} 16... Bxd3
{[%clk 0:01:55.3]} 17. cxd3 {[%clk 0:02:50.2]} 17... Rfc8 {[%clk 0:01:35.8]} 18.
Rfc1 {[%clk 0:02:49.5]} 18... f6 {[%clk 0:01:15.3]} 19. Qe1 {[%clk 0:02:43.9]}
19... Kf7 {[%clk 0:00:55]} 20. Rc6 {[%clk 0:02:41.1]} 20... Rcb8 {[%clk
0:00:14.5]} 21. Rac1 {[%clk 0:02:30.6]} 21... Rb7 {[%clk 0:00:14.6]} 22. R1c3
{[%clk 0:02:26]} 22... Raa7 {[%clk 0:00:05.2]} 23. f4 {[%clk 0:01:57.1]} 23...
g5 {[%clk 0:00:02]} 24. f5 {[%clk 0:00:59.1]} 24... exf5 {[%clk 0:00:01.7]} 25.
Rxf6+ {[%clk 0:00:23]} 25... Kg8 {[%clk 0:00:02.2]} 26. Nxf5 {[%clk 0:00:22.6]}
1-0